[Event "Titled Tuesday Blitz April 12 Late 2022"]
[White "Bordi, Kevin"]
[Black "Bluebaum, Matthias"]
[WhiteFideId "621862"]
[BlackFideId "24651516"]
[WhiteElo "2768"]
[BlackElo "2550"]
[Result "1/2-1/2"]
[Round "04"]
[TimeControl "180+1"]
[Date "2022.04.12"]
[WhiteClock "0:01:07"]
[BlackClock "0:01:42"]

1. e4 {[%clk 0:03:00]}  c6 {[%clk 0:02:59]} 2. c4 {[%clk 0:03:00]}  d5 {[%clk 0:03:00]} 3. cxd5 {[%clk 0:03:01]}  cxd5 {[%clk 0:03:01]} 4. exd5 {[%clk 0:03:02]}  Nf6 {[%clk 0:03:02]} 5. Nc3 {[%clk 0:03:03]}  Nxd5 {[%clk 0:03:01]} 6. Nf3 {[%clk 0:03:02]}  Nc6 {[%clk 0:03:01]} 7. d4 {[%clk 0:03:03]}  Bg4 {[%clk 0:03:00]} 8. Qb3 {[%clk 0:02:52]}  Bxf3 {[%clk 0:02:58]} 9. gxf3 {[%clk 0:02:53]}  Nb6 {[%clk 0:02:57]} 10. Be3 {[%clk 0:02:35]}  e6 {[%clk 0:02:55]} 11. O-O-O {[%clk 0:02:33]}  Be7 {[%clk 0:02:50]} 12. d5 {[%clk 0:02:32]}  exd5 {[%clk 0:02:50]} 13. Nxd5 {[%clk 0:02:33]}  Nxd5 {[%clk 0:02:51]} 14. Rxd5 {[%clk 0:02:30]}  Qc7 {[%clk 0:02:51]} 15. Kb1 {[%clk 0:02:24]}  O-O {[%clk 0:02:51]} 16. Rg1 {[%clk 0:02:22]}  Rad8 {[%clk 0:02:43]} 17. Qc3 {[%clk 0:02:13]}  g6 {[%clk 0:02:37]} 18. Bh6 {[%clk 0:02:09]}  f6 {[%clk 0:02:20]} 19. Bc4 {[%clk 0:01:58]}  Kh8 {[%clk 0:02:15]} 20. Bxf8 {[%clk 0:01:58]}  Rxf8 {[%clk 0:02:16]} 21. Rgd1 {[%clk 0:01:57]}  Ne5 {[%clk 0:02:13]} 22. Be2 {[%clk 0:01:51]}  Qxc3 {[%clk 0:02:13]} 23. bxc3 {[%clk 0:01:51]}  g5 {[%clk 0:02:14]} 24. Rxe5 {[%clk 0:01:34]}  fxe5 {[%clk 0:02:13]} 25. Rd7 {[%clk 0:01:35]}  Bc5 {[%clk 0:02:11]} 26. Rxb7 {[%clk 0:01:35]}  Bxf2 {[%clk 0:02:11]} 27. Kc2 {[%clk 0:01:29]}  Rf4 {[%clk 0:02:05]} 28. c4 {[%clk 0:01:24]}  Rh4 {[%clk 0:02:05]} 29. Kd3 {[%clk 0:01:17]}  Rxh2 {[%clk 0:02:05]} 30. Rc7 {[%clk 0:01:17]}  Bb6 {[%clk 0:01:59]} 31. Rf7 {[%clk 0:01:15]}  Rh4 {[%clk 0:01:56]} 32. Rf5 {[%clk 0:01:13]}  Rd4+ {[%clk 0:01:56]} 33. Kc2 {[%clk 0:01:12]}  e4 {[%clk 0:01:46]} 34. fxe4 {[%clk 0:00:54]}  Rxe4 {[%clk 0:01:46]} 35. Bd3 {[%clk 0:00:55]}  Re7 {[%clk 0:01:28]} 36. Rxg5 {[%clk 0:00:52]}  Be3 {[%clk 0:01:20]} 37. Rh5 {[%clk 0:00:50]}  h6 {[%clk 0:01:20]} 38. c5 {[%clk 0:00:40]}  Rc7 {[%clk 0:01:19]} 39. Kb3 {[%clk 0:00:40]}  Rxc5 {[%clk 0:01:04]} 40. Rxc5 {[%clk 0:00:39]}  Bxc5 {[%clk 0:01:05]} 41. Kc4 {[%clk 0:00:40]}  Bf2 {[%clk 0:01:05]} 42. Kd5 {[%clk 0:00:39]}  Kg7 {[%clk 0:01:06]} 43. Ke4 {[%clk 0:00:39]}  Kf6 {[%clk 0:01:07]} 44. Kf3 {[%clk 0:00:39]}  Bb6 {[%clk 0:01:07]} 45. Kg2 {[%clk 0:00:40]}  Kg5 {[%clk 0:01:08]} 46. Kh1 {[%clk 0:00:40]}  Kf4 {[%clk 0:01:09]} 47. Ba6 {[%clk 0:00:40]}  Kg3 {[%clk 0:01:10]} 48. Bb7 {[%clk 0:00:41]}  Bc5 {[%clk 0:01:10]} 49. Ba6 {[%clk 0:00:41]}  h5 {[%clk 0:01:11]} 50. Bb7 {[%clk 0:00:42]}  h4 {[%clk 0:01:12]} 51. a4 {[%clk 0:00:42]}  h3 {[%clk 0:01:13]} 52. a5 {[%clk 0:00:42]}  h2 {[%clk 0:01:13]} 53. a6 {[%clk 0:00:42]}  Bb6 {[%clk 0:01:14]} 54. Bc8 {[%clk 0:00:43]}  Bc7 {[%clk 0:01:15]} 55. Bb7 {[%clk 0:00:43]}  Bb6 {[%clk 0:01:16]} 56. Bc8 {[%clk 0:00:43]}  Bc7 {[%clk 0:01:17]} 57. Bb7 {[%clk 0:00:43]}  Kf4 {[%clk 0:01:17]} 58. Bc8 {[%clk 0:00:44]}  Ke3 {[%clk 0:01:18]} 59. Bb7 {[%clk 0:00:44]}  Kd4 {[%clk 0:01:19]} 60. Bc8 {[%clk 0:00:45]}  Kc3 {[%clk 0:01:20]} 61. Bb7 {[%clk 0:00:45]}  Kb4 {[%clk 0:01:21]} 62. Kg2 {[%clk 0:00:46]}  Kc5 {[%clk 0:01:22]} 63. Kh1 {[%clk 0:00:47]}  Kd6 {[%clk 0:01:23]} 64. Kg2 {[%clk 0:00:48]}  Ke7 {[%clk 0:01:24]} 65. Kh1 {[%clk 0:00:48]}  Kd8 {[%clk 0:01:25]} 66. Kg2 {[%clk 0:00:49]}  Kd7 {[%clk 0:01:26]} 67. Kh1 {[%clk 0:00:50]}  Bd6 {[%clk 0:01:26]} 68. Kg2 {[%clk 0:00:51]}  Kc7 {[%clk 0:01:27]} 69. Kh1 {[%clk 0:00:52]}  Kb6 {[%clk 0:01:28]} 70. Kg2 {[%clk 0:00:53]}  Bc7 {[%clk 0:01:29]} 71. Kh1 {[%clk 0:00:54]}  Kc5 {[%clk 0:01:29]} 72. Kg2 {[%clk 0:00:55]}  Be5 {[%clk 0:01:30]} 73. Kh1 {[%clk 0:00:55]}  Kd6 {[%clk 0:01:31]} 74. Kg2 {[%clk 0:00:56]}  Kc7 {[%clk 0:01:31]} 75. Kh1 {[%clk 0:00:57]}  Kd8 {[%clk 0:01:32]} 76. Kg2 {[%clk 0:00:58]}  Ke8 {[%clk 0:01:33]} 77. Kh1 {[%clk 0:00:59]}  Kf8 {[%clk 0:01:34]} 78. Kg2 {[%clk 0:01:00]}  Kg8 {[%clk 0:01:35]} 79. Kh1 {[%clk 0:01:01]}  Bd6 {[%clk 0:01:36]} 80. Kg2 {[%clk 0:01:02]}  Bc7 {[%clk 0:01:37]} 81. Kh1 {[%clk 0:01:03]}  Bb8 {[%clk 0:01:37]} 82. Kg2 {[%clk 0:01:04]}  Kh8 {[%clk 0:01:38]} 83. Kh1 {[%clk 0:01:04]}  Kg7 {[%clk 0:01:39]} 84. Kg2 {[%clk 0:01:05]}  Kh8 {[%clk 0:01:40]} 85. Kh1 {[%clk 0:01:06]}  Kg7 {[%clk 0:01:41]} 86. Kg2 {[%clk 0:01:07]}  Kh8 {[%clk 0:01:42]} 1/2-1/2


[Site "https://www.chess.com"]

[Event "Titled Tuesday Blitz April 12 Late 2022"]
[White "Bortnyk, Olexandr"]
[Black "Yanchenko, Roman"]
[WhiteFideId "14120828"]
[BlackFideId "4137329"]
[WhiteElo "2723"]
[BlackElo "2514"]
[Result "1/2-1/2"]
[Round "04"]
[TimeControl "180+1"]
[Date "2022.04.12"]
[WhiteClock "0:00:04"]
[BlackClock "0:00:05"]

1. d4 {[%clk 0:02:56]}  d5 {[%clk 0:03:00]} 2. Nc3 {[%clk 0:02:56]}  Nf6 {[%clk 0:02:59]} 3. Bf4 {[%clk 0:02:56]}  c6 {[%clk 0:02:59]} 4. e3 {[%clk 0:02:53]}  Bf5 {[%clk 0:02:59]} 5. Nf3 {[%clk 0:02:53]}  e6 {[%clk 0:02:59]} 6. Ne5 {[%clk 0:02:54]}  h6 {[%clk 0:02:58]} 7. g4 {[%clk 0:02:53]}  Bh7 {[%clk 0:02:57]} 8. h4 {[%clk 0:02:54]}  Nbd7 {[%clk 0:02:56]} 9. g5 {[%clk 0:02:45]}  Ne4 {[%clk 0:02:56]} 10. g6 {[%clk 0:02:44]}  Nxe5 {[%clk 0:02:38]} 11. gxh7 {[%clk 0:02:35]}  Nxc3 {[%clk 0:02:34]} 12. bxc3 {[%clk 0:02:30]}  Ng6 {[%clk 0:02:35]} 13. Bg3 {[%clk 0:02:26]}  Bd6 {[%clk 0:02:35]} 14. Bd3 {[%clk 0:02:25]}  Bxg3 {[%clk 0:02:10]} 15. fxg3 {[%clk 0:02:26]}  Nf8 {[%clk 0:02:09]} 16. Qg4 {[%clk 0:02:11]}  g6 {[%clk 0:02:07]} 17. h5 {[%clk 0:02:11]}  g5 {[%clk 0:02:00]} 18. Rf1 {[%clk 0:01:38]}  Qe7 {[%clk 0:01:52]} 19. Kd2 {[%clk 0:01:30]}  Nxh7 {[%clk 0:01:52]} 20. Qf3 {[%clk 0:01:25]}  Nf8 {[%clk 0:01:38]} 21. Rab1 {[%clk 0:00:50]}  b6 {[%clk 0:01:26]} 22. e4 {[%clk 0:00:46]}  Nd7 {[%clk 0:01:22]} 23. exd5 {[%clk 0:00:44]}  cxd5 {[%clk 0:01:22]} 24. Rbe1 {[%clk 0:00:37]}  Rc8 {[%clk 0:01:13]} 25. Bb5 {[%clk 0:00:32]}  Rc7 {[%clk 0:01:09]} 26. Re3 {[%clk 0:00:26]}  O-O {[%clk 0:01:02]} 27. Qxd5 {[%clk 0:00:22]}  Nf6 {[%clk 0:01:02]} 28. Qf3 {[%clk 0:00:20]}  Nd5 {[%clk 0:01:02]} 29. Rd3 {[%clk 0:00:18]}  Rfc8 {[%clk 0:00:57]} 30. Ba6 {[%clk 0:00:15]}  Rxc3 {[%clk 0:00:44]} 31. Bxc8 {[%clk 0:00:14]}  Rxc8 {[%clk 0:00:45]} 32. c3 {[%clk 0:00:09]}  b5 {[%clk 0:00:44]} 33. Ke2 {[%clk 0:00:08]}  b4 {[%clk 0:00:32]} 34. cxb4 {[%clk 0:00:09]}  Rc2+ {[%clk 0:00:32]} 35. Rd2 {[%clk 0:00:09]}  Rxd2+ {[%clk 0:00:32]} 36. Kxd2 {[%clk 0:00:10]}  Qxb4+ {[%clk 0:00:32]} 37. Ke2 {[%clk 0:00:11]}  Qb2+ {[%clk 0:00:30]} 38. Ke1 {[%clk 0:00:11]}  Qc1+ {[%clk 0:00:23]} 39. Kf2 {[%clk 0:00:11]}  Qd2+ {[%clk 0:00:23]} 40. Kg1 {[%clk 0:00:11]}  Qxd4+ {[%clk 0:00:24]} 41. Qf2 {[%clk 0:00:11]}  Qg7 {[%clk 0:00:16]} 42. Qxa7 {[%clk 0:00:11]}  Qc3 {[%clk 0:00:16]} 43. Qf2 {[%clk 0:00:11]}  f5 {[%clk 0:00:16]} 44. a4 {[%clk 0:00:09]}  f4 {[%clk 0:00:16]} 45. a5 {[%clk 0:00:08]}  Qxa5 {[%clk 0:00:15]} 46. Qd4 {[%clk 0:00:04]}  fxg3 {[%clk 0:00:14]} 47. Qe4 {[%clk 0:00:03]}  Qb6+ {[%clk 0:00:13]} 48. Kh1 {[%clk 0:00:03]}  Nf4 {[%clk 0:00:13]} 49. Rxf4 {[%clk 0:00:02]}  gxf4 {[%clk 0:00:13]} 50. Qg6+ {[%clk 0:00:03]}  Kf8 {[%clk 0:00:13]} 51. Qxh6+ {[%clk 0:00:04]}  Ke7 {[%clk 0:00:13]} 52. Qxf4 {[%clk 0:00:05]}  Qc5 {[%clk 0:00:06]} 53. Qh4+ {[%clk 0:00:03]}  Kf7 {[%clk 0:00:05]} 54. h6 {[%clk 0:00:02]}  Qd5+ {[%clk 0:00:04]} 55. Kg1 {[%clk 0:00:03]}  Qf3 {[%clk 0:00:04]} 56. Qd4 {[%clk 0:00:01]}  Qf2+ {[%clk 0:00:02]} 57. Qxf2+ {[%clk 0:00:02]}  gxf2+ {[%clk 0:00:03]} 58. Kxf2 {[%clk 0:00:03]}  Kg6 {[%clk 0:00:04]} 59. Ke3 {[%clk 0:00:03]}  Kxh6 {[%clk 0:00:04]} 60. Ke4 {[%clk 0:00:03]}  e5 {[%clk 0:00:05]} 61. Kxe5 {[%clk 0:00:04]} 1/2-1/2


[Site "https://www.chess.com"]

[Event "Titled Tuesday Blitz April 12 Late 2022"]
[White "Broca Jimenez, Fernando"]
[Black "Kosteniuk, Alexandra"]
[WhiteFideId "5104742"]
[BlackFideId "4128125"]
[WhiteElo "2062"]
[BlackElo "2469"]
[Result "0-1"]
[Round "04"]
[TimeControl "180+1"]
[Date "2022.04.13"]
[WhiteClock "0:00:11"]
[BlackClock "0:01:35"]

1. e4 {[%clk 0:03:00]}  c6 {[%clk 0:02:59]} 2. d4 {[%clk 0:03:00]}  d5 {[%clk 0:02:59]} 3. Nc3 {[%clk 0:03:00]}  dxe4 {[%clk 0:02:59]} 4. Nxe4 {[%clk 0:03:01]}  Nf6 {[%clk 0:03:00]} 5. Nxf6+ {[%clk 0:02:53]}  exf6 {[%clk 0:03:01]} 6. Nf3 {[%clk 0:02:52]}  Bd6 {[%clk 0:03:01]} 7. Bd3 {[%clk 0:02:52]}  O-O {[%clk 0:03:02]} 8. O-O {[%clk 0:02:51]}  Nd7 {[%clk 0:03:00]} 9. Be3 {[%clk 0:02:44]}  Re8 {[%clk 0:03:00]} 10. Qd2 {[%clk 0:02:44]}  Nf8 {[%clk 0:03:00]} 11. Bf4 {[%clk 0:02:43]}  Bg4 {[%clk 0:02:59]} 12. Rfe1 {[%clk 0:02:30]}  Rxe1+ {[%clk 0:02:45]} 13. Nxe1 {[%clk 0:02:28]}  Ne6 {[%clk 0:02:42]} 14. Bxd6 {[%clk 0:02:26]}  Qxd6 {[%clk 0:02:42]} 15. h3 {[%clk 0:02:17]}  Bh5 {[%clk 0:02:38]} 16. c3 {[%clk 0:01:53]}  Re8 {[%clk 0:02:31]} 17. Bf5 {[%clk 0:01:47]}  Nf4 {[%clk 0:02:30]} 18. Nd3 {[%clk 0:01:32]}  Ne2+ {[%clk 0:02:24]} 19. Kh1 {[%clk 0:01:26]}  Qd5 {[%clk 0:01:59]} 20. Nf4 {[%clk 0:00:49]}  Qxf5 {[%clk 0:01:55]} 21. Nxh5 {[%clk 0:00:47]}  Qxh5 {[%clk 0:01:51]} 22. Re1 {[%clk 0:00:47]}  Re6 {[%clk 0:01:45]} 23. Kh2 {[%clk 0:00:31]}  h6 {[%clk 0:01:40]} 24. g3 {[%clk 0:00:24]}  Qf3 {[%clk 0:01:36]} 25. b3 {[%clk 0:00:11]}  Qxf2+ {[%clk 0:01:35]} 0-1


[Site "https://www.chess.com"]

[Event "Titled Tuesday Blitz April 12 Late 2022"]
[White "Bryakin, Mikhail"]
[Black "Domingo Nunez, Alejandro"]
[WhiteFideId "4165314"]
[BlackFideId "22245561"]
[WhiteElo "2417"]
[BlackElo "2215"]
[Result "1-0"]
[Round "04"]
[TimeControl "180+1"]
[Date "2022.04.12"]
[WhiteClock "0:01:02"]
[BlackClock "0:00:08"]

1. e4 {[%clk 0:02:53]}  g6 {[%clk 0:03:00]} 2. d4 {[%clk 0:02:51]}  Bg7 {[%clk 0:03:00]} 3. Nc3 {[%clk 0:02:51]}  c6 {[%clk 0:03:01]} 4. f4 {[%clk 0:02:50]}  d5 {[%clk 0:03:01]} 5. e5 {[%clk 0:02:51]}  f6 {[%clk 0:03:02]} 6. Nf3 {[%clk 0:02:50]}  fxe5 {[%clk 0:03:02]} 7. fxe5 {[%clk 0:02:50]}  Nh6 {[%clk 0:03:02]} 8. Bd3 {[%clk 0:02:47]}  O-O {[%clk 0:03:01]} 9. O-O {[%clk 0:02:47]}  Bg4 {[%clk 0:03:00]} 10. h3 {[%clk 0:02:47]}  Bxf3 {[%clk 0:03:00]} 11. Rxf3 {[%clk 0:02:48]}  Rxf3 {[%clk 0:02:59]} 12. Qxf3 {[%clk 0:02:48]}  e6 {[%clk 0:03:00]} 13. Ne2 {[%clk 0:02:48]}  c5 {[%clk 0:02:59]} 14. c3 {[%clk 0:02:48]}  cxd4 {[%clk 0:02:59]} 15. cxd4 {[%clk 0:02:48]}  Nc6 {[%clk 0:02:59]} 16. g4 {[%clk 0:02:48]}  Qb6 {[%clk 0:02:58]} 17. Be3 {[%clk 0:02:43]}  Rf8 {[%clk 0:02:58]} 18. Qg3 {[%clk 0:02:36]}  Qxb2 {[%clk 0:02:57]} 19. Rb1 {[%clk 0:02:37]}  Qa3 {[%clk 0:02:55]} 20. Bf2 {[%clk 0:02:30]}  Nb4 {[%clk 0:02:44]} 21. Rb3 {[%clk 0:02:25]}  Qa4 {[%clk 0:02:31]} 22. Nc3 {[%clk 0:02:16]}  Qa5 {[%clk 0:02:31]} 23. Bf1 {[%clk 0:02:11]}  b6 {[%clk 0:01:25]} 24. a3 {[%clk 0:02:07]}  Nc6 {[%clk 0:01:22]} 25. Qd3 {[%clk 0:02:01]}  Nf7 {[%clk 0:01:08]} 26. h4 {[%clk 0:01:57]}  Nfxe5 {[%clk 0:01:08]} 27. dxe5 {[%clk 0:01:56]}  Nxe5 {[%clk 0:01:09]} 28. Qe2 {[%clk 0:01:29]}  Nf3+ {[%clk 0:01:05]} 29. Kg2 {[%clk 0:01:29]}  Bxc3 {[%clk 0:00:58]} 30. Qxe6+ {[%clk 0:01:29]}  Kh8 {[%clk 0:00:58]} 31. Be2 {[%clk 0:01:22]}  Nd2 {[%clk 0:00:31]} 32. Rb5 {[%clk 0:01:12]}  Qxa3 {[%clk 0:00:25]} 33. Rxd5 {[%clk 0:01:12]}  Qb3 {[%clk 0:00:12]} 34. Qd6 {[%clk 0:01:08]}  Bg7 {[%clk 0:00:10]} 35. Bd4 {[%clk 0:01:02]}  Ne4 {[%clk 0:00:08]} 36. Qxf8# {[%clk 0:01:02]} 1-0


[Site "https://www.chess.com"]

[Event "Titled Tuesday Blitz April 12 Late 2022"]
[White "Cagara, Paulina"]
[Black "Martinez Reyes, Pedro Ramon"]
[WhiteFideId "1124870"]
[BlackFideId "3901807"]
[WhiteElo "1780"]
[BlackElo "2410"]
[Result "0-1"]
[Round "04"]
[TimeControl "180+1"]
[Date "2022.04.13"]
[WhiteClock "0:01:19"]
[BlackClock "0:01:56"]

1. e4 {[%clk 0:03:00]}  c5 {[%clk 0:03:00]} 2. Nc3 {[%clk 0:03:00]}  d6 {[%clk 0:03:00]} 3. g3 {[%clk 0:02:59]}  g6 {[%clk 0:03:00]} 4. Bg2 {[%clk 0:02:59]}  Bg7 {[%clk 0:03:00]} 5. Nge2 {[%clk 0:02:59]}  h5 {[%clk 0:03:01]} 6. h4 {[%clk 0:02:57]}  Nc6 {[%clk 0:03:01]} 7. O-O {[%clk 0:02:56]}  Nd4 {[%clk 0:03:01]} 8. d3 {[%clk 0:02:53]}  Bg4 {[%clk 0:03:01]} 9. f3 {[%clk 0:02:50]}  Bd7 {[%clk 0:03:01]} 10. Kh2 {[%clk 0:02:48]}  Nf6 {[%clk 0:02:57]} 11. Nxd4 {[%clk 0:02:47]}  cxd4 {[%clk 0:02:58]} 12. Ne2 {[%clk 0:02:47]}  Qb6 {[%clk 0:02:56]} 13. b3 {[%clk 0:02:45]}  Rc8 {[%clk 0:02:56]} 14. a4 {[%clk 0:02:33]}  O-O {[%clk 0:02:55]} 15. a5 {[%clk 0:02:33]}  Qc5 {[%clk 0:02:54]} 16. Ba3 {[%clk 0:02:32]}  Qxc2 {[%clk 0:02:53]} 17. Nxd4 {[%clk 0:02:28]}  Qxd1 {[%clk 0:02:54]} 18. Raxd1 {[%clk 0:02:27]}  Nd5 {[%clk 0:02:44]} 19. exd5 {[%clk 0:02:13]}  Bxd4 {[%clk 0:02:44]} 20. Rfe1 {[%clk 0:02:10]}  Rfe8 {[%clk 0:02:44]} 21. Re2 {[%clk 0:02:09]}  Bc3 {[%clk 0:02:33]} 22. Bh3 {[%clk 0:02:03]}  Bxh3 {[%clk 0:02:30]} 23. Kxh3 {[%clk 0:02:03]}  Bxa5 {[%clk 0:02:27]} 24. g4 {[%clk 0:01:57]}  hxg4+ {[%clk 0:02:19]} 25. fxg4 {[%clk 0:01:55]}  Rc3 {[%clk 0:02:20]} 26. Bxd6 {[%clk 0:01:52]}  Bd8 {[%clk 0:02:11]} 27. b4 {[%clk 0:01:48]}  Kf8 {[%clk 0:02:02]} 28. Bg3 {[%clk 0:01:45]}  Bc7 {[%clk 0:02:00]} 29. Bxc7 {[%clk 0:01:34]}  Rxc7 {[%clk 0:02:01]} 30. Ra1 {[%clk 0:01:33]}  a6 {[%clk 0:02:00]} 31. b5 {[%clk 0:01:33]}  axb5 {[%clk 0:02:00]} 32. Rb1 {[%clk 0:01:32]}  Rc5 {[%clk 0:01:59]} 33. Reb2 {[%clk 0:01:30]}  Rxd5 {[%clk 0:01:59]} 34. Rxb5 {[%clk 0:01:30]}  Rxd3+ {[%clk 0:01:59]} 35. Kg2 {[%clk 0:01:30]}  Rc8 {[%clk 0:01:58]} 36. R1b2 {[%clk 0:01:26]}  Rcc3 {[%clk 0:01:58]} 37. Rxb7 {[%clk 0:01:21]}  Rg3+ {[%clk 0:01:58]} 38. Kf2 {[%clk 0:01:22]}  Rxg4 {[%clk 0:01:56]} 39. Rb8+ {[%clk 0:01:21]}  Kg7 {[%clk 0:01:57]} 40. Re8 {[%clk 0:01:20]}  Rxh4 {[%clk 0:01:55]} 41. Rxe7 {[%clk 0:01:19]}  Rh2+ {[%clk 0:01:56]} 0-1


[Site "https://www.chess.com"]

[Event "Titled Tuesday Blitz April 12 Late 2022"]
[White "Dauner, Benedikt"]
[Black "Rozman, Levy"]
[WhiteFideId "16225899"]
[BlackFideId "2039877"]
[WhiteElo "2230"]
[BlackElo "2376"]
[Result "0-1"]
[Round "04"]
[TimeControl "180+1"]
[Date "2022.04.12"]
[WhiteClock "0:00:02"]
[BlackClock "0:00:10"]

1. d4 {[%clk 0:03:00]}  d5 {[%clk 0:02:58]} 2. Nf3 {[%clk 0:03:00]}  e6 {[%clk 0:02:58]} 3. c3 {[%clk 0:03:00]}  f5 {[%clk 0:02:56]} 4. Bf4 {[%clk 0:02:55]}  Bd6 {[%clk 0:02:54]} 5. e3 {[%clk 0:02:53]}  Nf6 {[%clk 0:02:54]} 6. Ne5 {[%clk 0:02:51]}  O-O {[%clk 0:02:54]} 7. Nd2 {[%clk 0:02:50]}  c5 {[%clk 0:02:46]} 8. Be2 {[%clk 0:02:49]}  Nc6 {[%clk 0:02:46]} 9. g4 {[%clk 0:02:42]}  Bxe5 {[%clk 0:02:39]} 10. dxe5 {[%clk 0:02:36]}  Ne4 {[%clk 0:02:01]} 11. gxf5 {[%clk 0:02:25]}  exf5 {[%clk 0:02:01]} 12. Nxe4 {[%clk 0:01:40]}  fxe4 {[%clk 0:02:01]} 13. Qb3 {[%clk 0:01:40]}  c4 {[%clk 0:01:45]} 14. Qa3 {[%clk 0:01:32]}  Be6 {[%clk 0:01:42]} 15. O-O-O {[%clk 0:01:31]}  Qe7 {[%clk 0:01:08]} 16. Qxe7 {[%clk 0:01:09]}  Nxe7 {[%clk 0:01:08]} 17. h4 {[%clk 0:01:10]}  b5 {[%clk 0:00:58]} 18. h5 {[%clk 0:01:08]}  a5 {[%clk 0:00:57]} 19. Rdg1 {[%clk 0:01:02]}  Kh8 {[%clk 0:00:52]} 20. h6 {[%clk 0:00:57]}  g6 {[%clk 0:00:49]} 21. Bg5 {[%clk 0:00:56]}  Rxf2 {[%clk 0:00:43]} 22. Bxe7 {[%clk 0:00:24]}  Rxe2 {[%clk 0:00:43]} 23. Rf1 {[%clk 0:00:24]}  Re8 {[%clk 0:00:24]} 24. Bg5 {[%clk 0:00:13]}  b4 {[%clk 0:00:20]} 25. Rf6 {[%clk 0:00:09]}  bxc3 {[%clk 0:00:19]} 26. bxc3 {[%clk 0:00:10]}  Bf5 {[%clk 0:00:15]} 27. Rg1 {[%clk 0:00:08]}  Rxa2 {[%clk 0:00:14]} 28. Kb1 {[%clk 0:00:08]}  Rh2 {[%clk 0:00:13]} 29. Rxf5 {[%clk 0:00:08]}  Rb8+ {[%clk 0:00:10]} 30. Ka1 {[%clk 0:00:08]}  a4 {[%clk 0:00:09]} 31. Rf7 {[%clk 0:00:06]}  a3 {[%clk 0:00:04]} 32. Bf6+ {[%clk 0:00:06]}  Kg8 {[%clk 0:00:05]} 33. Rg7+ {[%clk 0:00:06]}  Kf8 {[%clk 0:00:05]} 34. Rxh7 {[%clk 0:00:06]}  Rbb2 {[%clk 0:00:05]} 35. Rh8+ {[%clk 0:00:06]}  Kf7 {[%clk 0:00:06]} 36. Rh7+ {[%clk 0:00:06]}  Ke6 {[%clk 0:00:07]} 37. Re7+ {[%clk 0:00:06]}  Kf5 {[%clk 0:00:07]} 38. Rf1+ {[%clk 0:00:06]}  Kg4 {[%clk 0:00:08]} 39. h7 {[%clk 0:00:02]}  Ra2+ {[%clk 0:00:08]} 40. Kb1 {[%clk 0:00:02]}  Rhb2+ {[%clk 0:00:09]} 41. Kc1 {[%clk 0:00:02]}  Ra1# {[%clk 0:00:10]} 0-1


[Site "https://www.chess.com"]

[Event "Titled Tuesday Blitz April 12 Late 2022"]
[White "De Souza, Cristiano Gomes"]
[Black "Stanisz, Patryk"]
[WhiteFideId "2151758"]
[BlackFideId "1123106"]
[WhiteElo "2068"]
[BlackElo "1833"]
[Result "1-0"]
[Round "04"]
[TimeControl "180+1"]
[Date "2022.04.13"]
[WhiteClock "0:02:12"]
[BlackClock "0:00:07"]

1. d4 {[%clk 0:03:00]}  Nf6 {[%clk 0:02:59]} 2. c4 {[%clk 0:03:01]}  g6 {[%clk 0:02:58]} 3. Nc3 {[%clk 0:03:00]}  d5 {[%clk 0:02:57]} 4. Bf4 {[%clk 0:02:59]}  Bg7 {[%clk 0:02:56]} 5. e3 {[%clk 0:02:59]}  O-O {[%clk 0:02:55]} 6. Nf3 {[%clk 0:02:57]}  c5 {[%clk 0:02:55]} 7. dxc5 {[%clk 0:02:57]}  Qa5 {[%clk 0:02:55]} 8. Rc1 {[%clk 0:02:56]}  Ne4 {[%clk 0:02:39]} 9. cxd5 {[%clk 0:02:56]}  Nxc3 {[%clk 0:02:35]} 10. bxc3 {[%clk 0:02:55]}  Bxc3+ {[%clk 0:02:35]} 11. Nd2 {[%clk 0:02:55]}  Qxc5 {[%clk 0:02:11]} 12. Qc2 {[%clk 0:02:53]}  Bxd2+ {[%clk 0:02:01]} 13. Qxd2 {[%clk 0:02:53]}  Qb6 {[%clk 0:01:55]} 14. Bc7 {[%clk 0:02:52]}  Qf6 {[%clk 0:01:48]} 15. Be2 {[%clk 0:02:51]}  Na6 {[%clk 0:01:45]} 16. Ba5 {[%clk 0:02:46]}  Bf5 {[%clk 0:01:36]} 17. O-O {[%clk 0:02:45]}  Rac8 {[%clk 0:01:30]} 18. Bc3 {[%clk 0:02:43]}  Qd6 {[%clk 0:01:10]} 19. Rfd1 {[%clk 0:02:40]}  Nc5 {[%clk 0:01:08]} 20. Qd4 {[%clk 0:02:38]}  f6 {[%clk 0:01:08]} 21. f3 {[%clk 0:02:37]}  b6 {[%clk 0:00:24]} 22. e4 {[%clk 0:02:36]}  Bd7 {[%clk 0:00:24]} 23. g3 {[%clk 0:02:29]}  Ba4 {[%clk 0:00:22]} 24. Rd2 {[%clk 0:02:23]}  Rfd8 {[%clk 0:00:23]} 25. f4 {[%clk 0:02:16]}  Be8 {[%clk 0:00:14]} 26. e5 {[%clk 0:02:16]}  Qd7 {[%clk 0:00:08]} 27. exf6 {[%clk 0:02:15]}  e6 {[%clk 0:00:07]} 28. f7+ {[%clk 0:02:12]} 1-0


[Site "https://www.chess.com"]